[Event "Late-Titled-Tuesday-Blitz-May-07-2024"]
[Site "Chess.com"]
[Date "2024.05.07"]
[Round "4"]
[White "Nick12772"]
[Black "gunslinger222"]
[Result "0-1"]
[WhiteElo "2422"]
[BlackElo "2318"]
[TimeControl "180+1"]
[EndTime "14:40:02 PDT"]
[Termination "gunslinger222 won by resignation"]

1. Nf3 {[%clk 0:03:00.9]} 1... c5 {[%clk 0:02:59.9]} 2. g3 {[%clk 0:03:01.5]}
2... Nc6 {[%clk 0:02:58.3]} 3. d4 {[%clk 0:03:01.5]} 3... b6 {[%clk 0:02:58.9]}
4. dxc5 {[%clk 0:03:01.1]} 4... bxc5 {[%clk 0:02:58.5]} 5. Bg2 {[%clk
0:03:01.7]} 5... Bb7 {[%clk 0:02:58.1]} 6. O-O {[%clk 0:03:00.3]} 6... h5 {[%clk
0:02:57.4]} 7. Ne5 {[%clk 0:02:52.1]} 7... Nxe5 {[%clk 0:02:54.4]} 8. Bxb7
{[%clk 0:02:52]} 8... Rb8 {[%clk 0:02:55]} 9. Bg2 {[%clk 0:02:51.6]} 9... h4
{[%clk 0:02:53.7]} 10. Bf4 {[%clk 0:02:52.3]} 10... f6 {[%clk 0:02:50.9]} 11.
Bxe5 {[%clk 0:02:49.5]} 11... fxe5 {[%clk 0:02:51.8]} 12. Qd3 {[%clk 0:02:38.1]}
12... Rh6 {[%clk 0:02:38.1]} 13. Be4 {[%clk 0:02:19.2]} 13... Qb6 {[%clk
0:02:30.3]} 14. Na3 {[%clk 0:02:02.1]} 14... hxg3 {[%clk 0:02:29.2]} 15. hxg3
{[%clk 0:01:57.5]} 15... Nf6 {[%clk 0:02:19.8]} 16. Nc4 {[%clk 0:01:55.6]} 16...
Qe6 {[%clk 0:02:18.8]} 17. Bf5 {[%clk 0:01:51.1]} 17... Qc6 {[%clk 0:02:18.3]}
18. Bg6+ {[%clk 0:01:20.8]} 18... Kd8 {[%clk 0:02:16.7]} 19. e4 {[%clk
0:01:21.2]} 19... Rxg6 {[%clk 0:02:15.6]} 20. Nxe5 {[%clk 0:01:21.4]} 20...
Rxg3+ {[%clk 0:01:56.6]} 21. fxg3 {[%clk 0:01:22.3]} 21... Qxe4 {[%clk
0:01:56.7]} 22. Rxf6 {[%clk 0:01:10.3]} 22... Qxd3 {[%clk 0:01:50.1]} 23. Rxf8+
{[%clk 0:01:10.1]} 23... Kc7 {[%clk 0:01:50.8]} 24. Nxd3 {[%clk 0:01:00.9]}
24... Rxf8 {[%clk 0:01:51.7]} 25. Nxc5 {[%clk 0:00:55.5]} 25... Kc6 {[%clk
0:01:51.6]} 26. Nd3 {[%clk 0:00:54.5]} 26... d6 {[%clk 0:01:49.9]} 27. Rf1
{[%clk 0:00:54.4]} 27... Rb8 {[%clk 0:01:45.2]} 28. Rf7 {[%clk 0:00:54]} 28...
e5 {[%clk 0:01:44.9]} 29. b3 {[%clk 0:00:48.2]} 29... a5 {[%clk 0:01:41.8]} 30.
a4 {[%clk 0:00:46.7]} 30... e4 {[%clk 0:01:39.3]} 31. Nf4 {[%clk 0:00:37.8]}
31... g5 {[%clk 0:01:39.5]} 32. Ne6 {[%clk 0:00:37]} 32... Kd5 {[%clk
0:01:34.7]} 33. Nxg5 {[%clk 0:00:37.1]} 33... Kd4 {[%clk 0:01:32.8]} 34. Re7
{[%clk 0:00:26.6]} 34... d5 {[%clk 0:01:31.8]} 35. Ne6+ {[%clk 0:00:24.8]} 35...
Kc3 {[%clk 0:01:28]} 36. Nc7 {[%clk 0:00:19]} 36... Rd8 {[%clk 0:01:22.6]} 37.
Re5 {[%clk 0:00:09.9]} 37... Kxc2 {[%clk 0:01:10.5]} 38. Rxd5 {[%clk 0:00:06.5]}
38... Rf8 {[%clk 0:01:05.2]} 39. Rd4 {[%clk 0:00:04.3]} 39... e3 {[%clk
0:01:05.1]} 40. Re4 {[%clk 0:00:04.9]} 40... Kd2 {[%clk 0:01:04.2]} 41. Nd5
{[%clk 0:00:04.5]} 41... e2 {[%clk 0:01:04.1]} 42. Nf4 {[%clk 0:00:03.2]} 42...
e1=Q+ {[%clk 0:01:02.4]} 43. Rxe1 {[%clk 0:00:03.9]} 43... Kxe1 {[%clk
0:01:03.1]} 44. Kg2 {[%clk 0:00:04.2]} 44... Kd2 {[%clk 0:01:01.6]} 45. Kf3
{[%clk 0:00:04.7]} 45... Kc3 {[%clk 0:01:01.9]} 46. Ke4 {[%clk 0:00:03.9]} 46...
Kxb3 {[%clk 0:01:02.2]} 47. g4 {[%clk 0:00:03.3]} 47... Kxa4 {[%clk 0:01:02.1]}
48. g5 {[%clk 0:00:04]} 48... Kb3 {[%clk 0:01:02.1]} 49. Ne6 {[%clk 0:00:03.1]}
49... Rg8 {[%clk 0:01:00.6]} 50. Kf5 {[%clk 0:00:03.5]} 50... Kc4 {[%clk
0:00:59.3]} 51. Nf4 {[%clk 0:00:02.9]} 51... a4 {[%clk 0:00:58.9]} 52. Ne2
{[%clk 0:00:03.2]} 52... a3 {[%clk 0:00:57.6]} 53. Nc1 {[%clk 0:00:03.9]} 53...
Kc3 {[%clk 0:00:56.2]} 54. g6 {[%clk 0:00:04.6]} 54... Kb2 {[%clk 0:00:55.2]}
55. Nd3+ {[%clk 0:00:05.1]} 55... Kc2 {[%clk 0:00:55]} 56. Nb4+ {[%clk
0:00:05.3]} 56... Kb3 {[%clk 0:00:54.1]} 57. Nd3 {[%clk 0:00:05.5]} 57... Rd8
{[%clk 0:00:49.8]} 58. g7 {[%clk 0:00:05.8]} 58... Kc2 {[%clk 0:00:45.8]} 59.
Nb4+ {[%clk 0:00:05.7]} 59... Kc3 {[%clk 0:00:45.9]} 60. Na2+ {[%clk 0:00:05.5]}
60... Kb2 {[%clk 0:00:44.8]} 61. Nb4 {[%clk 0:00:05.7]} 61... Kb3 {[%clk
0:00:43.7]} 62. Nc6 {[%clk 0:00:02.3]} 62... Rg8 {[%clk 0:00:39.9]} 63. Nd4+
{[%clk 0:00:01.3]} 63... Kb2 {[%clk 0:00:37.2]} 64. Kf6 {[%clk 0:00:01.1]} 64...
a2 {[%clk 0:00:36.7]} 65. Ne6 {[%clk 0:00:01.1]} 65... a1=Q {[%clk 0:00:35.8]}
66. Kf7 {[%clk 0:00:01.8]} 66... Qa8 {[%clk 0:00:30.1]} 67. Nf8 {[%clk
0:00:01.8]} 67... Qd5+ {[%clk 0:00:25.9]} 68. Kf6 {[%clk 0:00:01.6]} 68... Qf3+
{[%clk 0:00:21.4]} 69. Kg6 {[%clk 0:00:01.8]} 69... Rxf8 {[%clk 0:00:20.5]} 70.
gxf8=Q {[%clk 0:00:01.2]} 70... Qxf8 {[%clk 0:00:21.4]} 0-1

[Event "Late-Titled-Tuesday-Blitz-May-07-2024"]
[Site "Chess.com"]
[Date "2024.05.07"]
[Round "4"]
[White "Ajedrez_con_German"]
[Black "NovakRatko"]
[Result "1/2-1/2"]
[WhiteElo "2595"]
[BlackElo "2412"]
[TimeControl "180+1"]
[EndTime "14:40:07 PDT"]
[Termination "Game drawn by repetition"]

1. d4 {[%clk 0:02:29.8]} 1... d5 {[%clk 0:02:59]} 2. c4 {[%clk 0:02:29.8]} 2...
c5 {[%clk 0:02:59.1]} 3. e3 {[%clk 0:02:25.4]} 3... cxd4 {[%clk 0:02:57.6]} 4.
exd4 {[%clk 0:02:25.6]} 4... Nc6 {[%clk 0:02:57.7]} 5. Nf3 {[%clk 0:02:15.5]}
5... Nf6 {[%clk 0:02:56.5]} 6. cxd5 {[%clk 0:02:14.5]} 6... Nxd5 {[%clk
0:02:55.5]} 7. Be2 {[%clk 0:02:10.5]} 7... e6 {[%clk 0:02:54.7]} 8. O-O {[%clk
0:02:09.9]} 8... Be7 {[%clk 0:02:54.4]} 9. Nc3 {[%clk 0:02:07.4]} 9... O-O
{[%clk 0:02:54.1]} 10. Re1 {[%clk 0:02:04]} 10... Bf6 {[%clk 0:02:53.6]} 11. Be3
{[%clk 0:01:59.6]} 11... Nxe3 {[%clk 0:02:38.3]} 12. fxe3 {[%clk 0:01:59.3]}
12... e5 {[%clk 0:02:36.8]} 13. d5 {[%clk 0:01:56.5]} 13... Ne7 {[%clk
0:02:34.7]} 14. e4 {[%clk 0:01:56.6]} 14... Ng6 {[%clk 0:02:34.1]} 15. Qb3
{[%clk 0:01:40.8]} 15... a6 {[%clk 0:02:26.8]} 16. Rad1 {[%clk 0:01:39.3]} 16...
b5 {[%clk 0:02:26.3]} 17. a4 {[%clk 0:01:39]} 17... Qb6+ {[%clk 0:02:17.1]} 18.
Kh1 {[%clk 0:01:36.4]} 18... b4 {[%clk 0:02:17.2]} 19. d6 {[%clk 0:01:33.2]}
19... Be6 {[%clk 0:02:11.3]} 20. Nd5 {[%clk 0:01:33.4]} 20... Bxd5 {[%clk
0:02:06.5]} 21. Qxd5 {[%clk 0:01:24]} 21... Nf4 {[%clk 0:02:04.1]} 22. Qd2
{[%clk 0:01:17.5]} 22... Rfd8 {[%clk 0:01:58.3]} 23. Bf1 {[%clk 0:01:08.6]}
23... Rd7 {[%clk 0:01:49.1]} 24. g3 {[%clk 0:01:08.5]} 24... Ng6 {[%clk
0:01:39.5]} 25. Bh3 {[%clk 0:01:07.7]} 25... Rdd8 {[%clk 0:01:38]} 26. b3 {[%clk
0:00:55.9]} 26... h6 {[%clk 0:01:35.9]} 27. Qd5 {[%clk 0:00:53.9]} 27... Qf2
{[%clk 0:01:17.3]} 28. Bg2 {[%clk 0:00:50.1]} 28... Ra7 {[%clk 0:01:00.4]} 29.
Qd2 {[%clk 0:00:45.7]} 29... Qb6 {[%clk 0:00:58.9]} 30. Bh3 {[%clk 0:00:42.8]}
30... a5 {[%clk 0:00:48.9]} 31. Qd3 {[%clk 0:00:37.6]} 31... Qf2 {[%clk
0:00:45.9]} 32. Qe2 {[%clk 0:00:33.2]} 32... Qb6 {[%clk 0:00:44.8]} 33. Qd2
{[%clk 0:00:27.2]} 33... Nf8 {[%clk 0:00:34.9]} 34. Qd3 {[%clk 0:00:27.2]} 34...
Nd7 {[%clk 0:00:32.5]} 35. Nd2 {[%clk 0:00:23.5]} 35... Nc5 {[%clk 0:00:29]} 36.
Qc2 {[%clk 0:00:23.7]} 36... Rxd6 {[%clk 0:00:23]} 37. Nc4 {[%clk 0:00:24.3]}
37... Rxd1 {[%clk 0:00:23.4]} 38. Nxb6 {[%clk 0:00:24.8]} 38... Rxe1+ {[%clk
0:00:23.6]} 39. Kg2 {[%clk 0:00:25.4]} 39... Nxe4 {[%clk 0:00:18.9]} 40. Qc8+
{[%clk 0:00:24.4]} 40... Kh7 {[%clk 0:00:18.5]} 41. Bf5+ {[%clk 0:00:24.5]}
41... g6 {[%clk 0:00:18.1]} 42. Nd7 {[%clk 0:00:24.2]} 42... Re2+ {[%clk
0:00:11.7]} 43. Kf3 {[%clk 0:00:20.7]} 43... Rf2+ {[%clk 0:00:11.6]} 44. Kxe4
{[%clk 0:00:21]} 44... Rxf5 {[%clk 0:00:12.1]} 45. Nf8+ {[%clk 0:00:19.1]} 45...
Kh8 {[%clk 0:00:12.3]} 46. Nxg6+ {[%clk 0:00:16.4]} 46... Kg7 {[%clk 0:00:12.8]}
47. Kxf5 {[%clk 0:00:13.7]} 47... fxg6+ {[%clk 0:00:12.8]} 48. Ke4 {[%clk
0:00:13.9]} 48... Rf7 {[%clk 0:00:10.7]} 49. Qc5 {[%clk 0:00:13]} 49... Bd8
{[%clk 0:00:08.3]} 50. Qc8 {[%clk 0:00:09.2]} 50... Bc7 {[%clk 0:00:08.2]} 51.
Qe6 {[%clk 0:00:08.8]} 51... h5 {[%clk 0:00:08.2]} 52. h3 {[%clk 0:00:08.8]}
52... Rf6 {[%clk 0:00:03.9]} 53. Qd7+ {[%clk 0:00:08.4]} 53... Rf7 {[%clk
0:00:04.5]} 54. Qc6 {[%clk 0:00:08.9]} 54... Kh7 {[%clk 0:00:03.5]} 55. h4
{[%clk 0:00:09]} 55... Kg7 {[%clk 0:00:03.7]} 56. Kd5 {[%clk 0:00:08.1]} 56...
Re7 {[%clk 0:00:02.9]} 57. Ke4 {[%clk 0:00:07.4]} 57... Rf7 {[%clk 0:00:03.2]}
58. Qc4 {[%clk 0:00:07.4]} 58... Re7 {[%clk 0:00:03.1]} 59. Qd5 {[%clk 0:00:08]}
59... Rf7 {[%clk 0:00:03.1]} 60. Qc5 {[%clk 0:00:08.6]} 60... Kf6 {[%clk
0:00:02.6]} 61. Qc6+ {[%clk 0:00:08.4]} 61... Kg7 {[%clk 0:00:03.1]} 1/2-1/2

[Event "Late-Titled-Tuesday-Blitz-May-07-2024"]
[Site "Chess.com"]
[Date "2024.05.07"]
[Round "4"]
[White "koziororo"]
[Black "Der_Balak_3Halak"]
[Result "1-0"]
[WhiteElo "2592"]
[BlackElo "2393"]
[TimeControl "180+1"]
[EndTime "14:40:12 PDT"]
[Termination "koziororo won by checkmate"]

1. e4 {[%clk 0:03:00.9]} 1... e6 {[%clk 0:02:57.4]} 2. Qe2 {[%clk 0:03:00.2]}
2... d5 {[%clk 0:02:58.3]} 3. exd5 {[%clk 0:03:00.6]} 3... Qxd5 {[%clk
0:02:58.5]} 4. Nc3 {[%clk 0:03:00.7]} 4... Qd8 {[%clk 0:02:57.6]} 5. Nf3 {[%clk
0:03:00.6]} 5... Nf6 {[%clk 0:02:57.8]} 6. b3 {[%clk 0:03:00.9]} 6... b6 {[%clk
0:02:57.1]} 7. Bb2 {[%clk 0:03:01.3]} 7... Bb7 {[%clk 0:02:57.7]} 8. O-O-O
{[%clk 0:03:01.6]} 8... Nbd7 {[%clk 0:02:58.1]} 9. Ng5 {[%clk 0:02:59.8]} 9...
h6 {[%clk 0:02:45.5]} 10. Nge4 {[%clk 0:02:59.8]} 10... Be7 {[%clk 0:02:41]} 11.
Rg1 {[%clk 0:02:46.3]} 11... Nxe4 {[%clk 0:02:40.3]} 12. Nxe4 {[%clk 0:02:47.2]}
12... Nf6 {[%clk 0:02:40.9]} 13. f3 {[%clk 0:02:23.4]} 13... a5 {[%clk
0:02:38.9]} 14. a4 {[%clk 0:02:20.8]} 14... Qd5 {[%clk 0:02:16.2]} 15. Nc3
{[%clk 0:01:56]} 15... Qd4 {[%clk 0:02:03.3]} 16. Rh1 {[%clk 0:01:37.3]} 16...
Qd7 {[%clk 0:02:02.7]} 17. g4 {[%clk 0:01:35.7]} 17... O-O-O {[%clk 0:01:48.6]}
18. Bg2 {[%clk 0:01:33.9]} 18... g5 {[%clk 0:01:45]} 19. Rhf1 {[%clk 0:01:18.8]}
19... Rhg8 {[%clk 0:01:38.2]} 20. f4 {[%clk 0:01:14.7]} 20... gxf4 {[%clk
0:01:33]} 21. Rxf4 {[%clk 0:01:12.9]} 21... Bxg2 {[%clk 0:01:14.2]} 22. Qxg2
{[%clk 0:01:13.8]} 22... Kb8 {[%clk 0:01:14.6]} 23. Qf3 {[%clk 0:01:10.8]} 23...
Nh7 {[%clk 0:01:05.3]} 24. Nb5 {[%clk 0:00:50.3]} 24... Ng5 {[%clk 0:00:58.2]}
25. Qg2 {[%clk 0:00:39.1]} 25... Bc5 {[%clk 0:00:34]} 26. Bf6 {[%clk 0:00:32.6]}
26... Rc8 {[%clk 0:00:22]} 27. Nd4 {[%clk 0:00:30.2]} 27... Bxd4 {[%clk
0:00:21]} 28. Rxd4 {[%clk 0:00:31.1]} 28... Qe8 {[%clk 0:00:18.8]} 29. h4 {[%clk
0:00:28.6]} 29... Nh7 {[%clk 0:00:18.9]} 30. Be5 {[%clk 0:00:29.3]} 30... Rd8
{[%clk 0:00:18.3]} 31. Rc4 {[%clk 0:00:28]} 31... Rc8 {[%clk 0:00:15.2]} 32. Qe4
{[%clk 0:00:20.6]} 32... f6 {[%clk 0:00:14.3]} 33. Bh2 {[%clk 0:00:19.9]} 33...
Qd7 {[%clk 0:00:13.8]} 34. Re1 {[%clk 0:00:17.1]} 34... Rge8 {[%clk 0:00:11.8]}
35. d3 {[%clk 0:00:17]} 35... f5 {[%clk 0:00:11.9]} 36. Qf4 {[%clk 0:00:14.6]}
36... e5 {[%clk 0:00:07]} 37. Qxh6 {[%clk 0:00:14.7]} 37... fxg4 {[%clk
0:00:06.1]} 38. Rxe5 {[%clk 0:00:13.4]} 38... Rxe5 {[%clk 0:00:07]} 39. Bxe5
{[%clk 0:00:13.9]} 39... Kb7 {[%clk 0:00:05.2]} 40. Qf4 {[%clk 0:00:11.8]} 40...
Nf8 {[%clk 0:00:04.9]} 41. Qxg4 {[%clk 0:00:11.1]} 41... Qxg4 {[%clk 0:00:04.5]}
42. Rxg4 {[%clk 0:00:12]} 42... Nd7 {[%clk 0:00:04.6]} 43. Bd4 {[%clk
0:00:11.6]} 43... c5 {[%clk 0:00:04.5]} 44. Bc3 {[%clk 0:00:11.6]} 44... Kc6
{[%clk 0:00:02.7]} 45. h5 {[%clk 0:00:11.5]} 45... Nf8 {[%clk 0:00:01.4]} 46. h6
{[%clk 0:00:11.4]} 46... Rc7 {[%clk 0:00:01.5]} 47. Rg7 {[%clk 0:00:10.8]} 47...
Nh7 {[%clk 0:00:02.1]} 48. Be5 {[%clk 0:00:08.2]} 48... Rd7 {[%clk 0:00:02.7]}
49. Rxd7 {[%clk 0:00:07.4]} 49... Kxd7 {[%clk 0:00:03.6]} 50. Kd2 {[%clk
0:00:07.9]} 50... Ke6 {[%clk 0:00:04.1]} 51. Bc7 {[%clk 0:00:07.6]} 51... Ng5
{[%clk 0:00:02.3]} 52. Bxb6 {[%clk 0:00:07.4]} 52... Kd5 {[%clk 0:00:02.8]} 53.
Bd8 {[%clk 0:00:04.6]} 53... Nf7 {[%clk 0:00:02.3]} 54. h7 {[%clk 0:00:04.1]}
54... Ke6 {[%clk 0:00:02.2]} 55. Bxa5 {[%clk 0:00:03.7]} 55... Nh8 {[%clk
0:00:02.4]} 56. Bc3 {[%clk 0:00:04.6]} 56... Ng6 {[%clk 0:00:02]} 57. h8=Q
{[%clk 0:00:05.5]} 57... Nxh8 {[%clk 0:00:02.7]} 58. Bxh8 {[%clk 0:00:06.4]}
58... Kd5 {[%clk 0:00:03.4]} 59. c4+ {[%clk 0:00:07.3]} 59... Kc6 {[%clk
0:00:04.3]} 60. Kc3 {[%clk 0:00:08.2]} 60... Kb6 {[%clk 0:00:04.7]} 61. Bg7
{[%clk 0:00:08.9]} 61... Ka5 {[%clk 0:00:05.6]} 62. Bf8 {[%clk 0:00:09.8]} 62...
Ka6 {[%clk 0:00:06]} 63. d4 {[%clk 0:00:10.7]} 63... cxd4+ {[%clk 0:00:06.1]}
64. Kxd4 {[%clk 0:00:11.6]} 64... Ka5 {[%clk 0:00:06.8]} 65. Ba3 {[%clk
0:00:12.5]} 65... Kb6 {[%clk 0:00:07.3]} 66. Kc3 {[%clk 0:00:13.4]} 66... Ka5
{[%clk 0:00:08.2]} 67. Bc1 {[%clk 0:00:14.2]} 67... Kb6 {[%clk 0:00:08.6]} 68.
Be3+ {[%clk 0:00:15.1]} 68... Ka5 {[%clk 0:00:09.5]} 69. Kb2 {[%clk 0:00:15.8]}
69... Kb4 {[%clk 0:00:09.6]} 70. Bd2+ {[%clk 0:00:16]} 70... Kc5 {[%clk
0:00:10.5]} 71. Kc3 {[%clk 0:00:16.7]} 71... Kb6 {[%clk 0:00:10.9]} 72. b4
{[%clk 0:00:17.6]} 72... Ka6 {[%clk 0:00:11.2]} 73. c5 {[%clk 0:00:18.5]} 73...
Kb7 {[%clk 0:00:11.7]} 74. Kc4 {[%clk 0:00:19.4]} 74... Ka7 {[%clk 0:00:12.6]}
75. b5 {[%clk 0:00:20.3]} 75... Kb7 {[%clk 0:00:12.9]} 76. c6+ {[%clk
0:00:21.2]} 76... Ka7 {[%clk 0:00:13.8]} 77. Kc5 {[%clk 0:00:22.1]} 77... Kb8
{[%clk 0:00:13.9]} 78. a5 {[%clk 0:00:23]} 78... Ka8 {[%clk 0:00:14.4]} 79. b6
{[%clk 0:00:23.9]} 79... Kb8 {[%clk 0:00:14.9]} 80. a6 {[%clk 0:00:24.8]} 80...
Ka8 {[%clk 0:00:15]} 81. b7+ {[%clk 0:00:25]} 81... Ka7 {[%clk 0:00:15]} 82. Kb5
{[%clk 0:00:25.3]} 82... Kb8 {[%clk 0:00:15.2]} 83. Bf4+ {[%clk 0:00:26.2]}
83... Ka7 {[%clk 0:00:15.7]} 84. b8=Q# {[%clk 0:00:27.1]} 1-0

[Event "Late-Titled-Tuesday-Blitz-May-07-2024"]
[Site "Chess.com"]
[Date "2024.05.07"]
[Round "4"]
[White "h4parah5"]
[Black "ameetghasi100"]
[Result "1-0"]
[WhiteElo "3019"]
[BlackElo "2802"]
[TimeControl "180+1"]
[EndTime "14:40:13 PDT"]
[Termination "h4parah5 won on time"]

1. Nf3 {[%clk 0:03:00.9]} 1... g6 {[%clk 0:03:00.1]} 2. d4 {[%clk 0:03:00.7]}
2... Bg7 {[%clk 0:03:01]} 3. e4 {[%clk 0:03:00.6]} 3... Nf6 {[%clk 0:03:01.9]}
4. e5 {[%clk 0:03:00.5]} 4... Nd5 {[%clk 0:03:02.4]} 5. c4 {[%clk 0:03:00.3]}
5... Nb6 {[%clk 0:03:02.9]} 6. a4 {[%clk 0:02:52.1]} 6... a5 {[%clk 0:03:00.3]}
7. c5 {[%clk 0:02:50.5]} 7... Nd5 {[%clk 0:02:59.8]} 8. Nc3 {[%clk 0:02:50.2]}
8... Nb4 {[%clk 0:02:59.9]} 9. Bc4 {[%clk 0:02:45.3]} 9... d6 {[%clk 0:02:55.8]}
10. cxd6 {[%clk 0:02:40.7]} 10... cxd6 {[%clk 0:02:54.9]} 11. O-O {[%clk
0:02:39.7]} 11... O-O {[%clk 0:02:50.2]} 12. Bf4 {[%clk 0:02:38.3]} 12... N8c6
{[%clk 0:02:48]} 13. h3 {[%clk 0:02:36]} 13... Bf5 {[%clk 0:02:47.7]} 14. g4
{[%clk 0:02:34.7]} 14... Bc2 {[%clk 0:02:44.9]} 15. Qe2 {[%clk 0:02:30.7]} 15...
d5 {[%clk 0:02:42.2]} 16. Bb5 {[%clk 0:02:28.2]} 16... Na7 {[%clk 0:02:42.2]}
17. Ne1 {[%clk 0:02:25.7]} 17... Nxb5 {[%clk 0:02:34.4]} 18. Nxc2 {[%clk
0:02:07]} 18... Nxc2 {[%clk 0:02:34.1]} 19. Qxc2 {[%clk 0:02:07.9]} 19... Nxd4
{[%clk 0:02:34.3]} 20. Qd3 {[%clk 0:02:07.7]} 20... Nc6 {[%clk 0:02:31.8]} 21.
Qxd5 {[%clk 0:02:03.2]} 21... e6 {[%clk 0:02:19.1]} 22. Qe4 {[%clk 0:01:55.9]}
22... Qd4 {[%clk 0:02:16.4]} 23. Rfe1 {[%clk 0:01:38.6]} 23... Rfd8 {[%clk
0:02:04.4]} 24. Bg3 {[%clk 0:01:38]} 24... Qb4 {[%clk 0:01:57.9]} 25. Nb5 {[%clk
0:01:25.3]} 25... Rd2 {[%clk 0:01:46.2]} 26. Rab1 {[%clk 0:01:13.1]} 26... Rad8
{[%clk 0:00:54]} 27. Nd6 {[%clk 0:00:59.2]} 27... Rd7 {[%clk 0:00:53.4]} 28.
Qxb4 {[%clk 0:00:46.6]} 28... Nxb4 {[%clk 0:00:45.6]} 29. Ne4 {[%clk 0:00:45.8]}
29... R2d3 {[%clk 0:00:42.7]} 30. Nc5 {[%clk 0:00:44.2]} 30... Bf8 {[%clk
0:00:39.3]} 31. Nxd7 {[%clk 0:00:40.3]} 31... Rxd7 {[%clk 0:00:40.2]} 32. Red1
{[%clk 0:00:40]} 32... Nd5 {[%clk 0:00:40.7]} 33. Rbc1 {[%clk 0:00:40]} 33...
Be7 {[%clk 0:00:37.3]} 34. Bf4 {[%clk 0:00:33.8]} 34... Kg7 {[%clk 0:00:35.5]}
35. Be3 {[%clk 0:00:31.9]} 35... h5 {[%clk 0:00:35.3]} 36. g5 {[%clk 0:00:29.7]}
36... Rd8 {[%clk 0:00:32.6]} 37. Bd2 {[%clk 0:00:27.7]} 37... h4 {[%clk
0:00:30.5]} 38. f4 {[%clk 0:00:25.8]} 38... b5 {[%clk 0:00:26.4]} 39. axb5
{[%clk 0:00:20.1]} 39... Rb8 {[%clk 0:00:26.9]} 40. Rc2 {[%clk 0:00:15.4]} 40...
Rxb5 {[%clk 0:00:27.1]} 41. Ra1 {[%clk 0:00:15.5]} 41... Bb4 {[%clk 0:00:21.3]}
42. Bc1 {[%clk 0:00:14.8]} 42... Bc5+ {[%clk 0:00:21]} 43. Kg2 {[%clk
0:00:14.9]} 43... Bb6 {[%clk 0:00:19.3]} 44. Ra3 {[%clk 0:00:13.5]} 44... Rb4
{[%clk 0:00:17.8]} 45. Kf3 {[%clk 0:00:13.3]} 45... Bg1 {[%clk 0:00:14.4]} 46.
Bd2 {[%clk 0:00:12.5]} 46... Rb5 {[%clk 0:00:08.9]} 47. Rxa5 {[%clk 0:00:09.5]}
47... Rb3+ {[%clk 0:00:09.3]} 48. Ke2 {[%clk 0:00:08.6]} 48... Bh2 {[%clk
0:00:08.5]} 49. Ra3 {[%clk 0:00:08]} 49... Rb5 {[%clk 0:00:07.8]} 50. Kf3 {[%clk
0:00:08.1]} 50... Bg1 {[%clk 0:00:08.1]} 51. b4 {[%clk 0:00:07.2]} 51... Bd4
{[%clk 0:00:07.7]} 52. Rb3 {[%clk 0:00:07.1]} 52... Bg1 {[%clk 0:00:07.7]} 53.
Ke4 {[%clk 0:00:07.1]} 53... Bh2 {[%clk 0:00:07.3]} 54. Ra2 {[%clk 0:00:07.2]}
54... Bg1 {[%clk 0:00:04.7]} 55. Ra5 {[%clk 0:00:07.6]} 55... Rb8 {[%clk
0:00:05.3]} 56. b5 {[%clk 0:00:08.1]} 56... Bb6 {[%clk 0:00:06]} 57. Ra2 {[%clk
0:00:07.9]} 57... Rc8 {[%clk 0:00:06.9]} 58. Kd3 {[%clk 0:00:08.2]} 58... Rd8
{[%clk 0:00:06.6]} 59. Ke2 {[%clk 0:00:08.7]} 59... Ne7 {[%clk 0:00:06.1]} 60.
Be3 {[%clk 0:00:08.6]} 60... Nd5 {[%clk 0:00:06.1]} 61. Bxb6 {[%clk 0:00:08.4]}
61... Nxb6 {[%clk 0:00:07]} 62. Rd2 {[%clk 0:00:09]} 62... Rc8 {[%clk
0:00:07.2]} 63. Rd6 {[%clk 0:00:09.2]} 63... Nc4 {[%clk 0:00:06.4]} 64. Rc6
{[%clk 0:00:09.7]} 64... Rxc6 {[%clk 0:00:05.9]} 65. bxc6 {[%clk 0:00:10.6]}
65... Na5 {[%clk 0:00:06.2]} 66. Rc3 {[%clk 0:00:10.9]} 66... Nxc6 {[%clk
0:00:06.2]} 67. Rxc6 {[%clk 0:00:11.8]} 1-0